bitfinex/quotes_SOLUSD_20240711
["timestamp","ask_amount","ask_price","bid_price","bid_amount"]
[1720690361335,0.17,142.89,142.83,6.3596]
[1720690361539,0.34,142.89,142.83,6.3596]
[1720690361935,0.17,142.92,142.83,6.3596]
[1720690362167,0.51,142.92,142.83,6.3596]
[1720690362466,0.17,142.92,142.83,6.3596]
[1720690362772,0.34,142.93,142.83,6.3596]
[1720690364868,0.17,142.92,142.83,6.3596]
[1720690366443,11.83486076,142.91,142.83,6.3596]
[1720690366670,0.51,142.9,142.83,6.3596]
[1720690367040,23.13,142.88,142.83,6.3596]
[1720690367236,23.13,142.86,142.79,6.1162]
[1720690368545,0.34,142.87,142.79,6.1162]
[1720690371765,0.17,142.86,142.79,6.1162]
[1720690371950,0.34,142.86,142.79,6.1162]
[1720690372145,0.17,142.85,142.79,6.1162]
[1720690372457,0.34,142.86,142.79,6.1162]
[1720690372661,0.17,142.85,142.79,6.1162]
[1720690372987,0.34,142.86,142.79,6.1162]
[1720690372988,0.17,142.86,142.79,6.1162]
[1720690373272,0.17,142.87,142.79,6.1162]
[1720690373571,0.51,142.88,142.79,6.1162]
[1720690374562,0.34,142.88,142.8,1.40032231]
[1720690375870,23.13,142.89,142.81,16.637]
[1720690376076,23.13,142.89,142.81,18.03712621]
[1720690376251,23.13,142.89,142.81,16.637]
[1720690376571,0.34,142.88,142.81,16.637]
[1720690382582,11.56,142.85,142.81,16.637]
[1720690384170,11.56,142.86,142.81,28.197]
[1720690384851,11.56,142.85,142.81,16.637]
[1720690385263,11.56,142.84,142.81,16.637]
[1720690387654,11.56,142.85,142.81,16.637]
[1720690387973,46.24,142.94,142.83,18.2007]
[1720690388178,11.56,142.88,142.83,18.2007]
[1720690388373,62.28597147,142.94,142.83,19.04067151]
[1720690388561,11.56,142.89,142.84,11.56]
[1720690388754,11.56,142.88,142.83,19.04067151]
[1720690389190,11.56,142.87,142.83,6.6407]
[1720690389348,11.56,142.85,142.83,6.6407]
[1720690390453,116.04409458,142.93,142.83,6.6407]
[1720690390454,11.56,142.84,142.83,6.6407]
[1720690390862,11.56,142.84,142.81,16.637]
[1720690391062,11.56,142.82,142.79,6.6247]
[1720690391276,11.56,142.81,142.79,6.6247]
[1720690392872,11.56,142.8,142.79,6.6247]
[1720690393074,11.56,142.8,142.66,384.7]
[1720690393075,11.56,142.8,142.73,21.9559]
[1720690393379,11.56,142.77,142.73,21.9559]
[1720690393563,11.56,142.78,142.73,33.5159]
[1720690393967,11.56,142.79,142.74,11.56]
[1720690394387,19.51305172,142.86,142.74,11.56]
[1720690394683,23.15,142.84,142.73,21.9559]
[1720690394885,20.73609496,142.83,142.73,21.9559]
[1720690395067,0.51,142.83,142.73,21.9559]
[1720690395578,19.17305172,142.88,142.74,0.51]
[1720690395884,20.22418772,142.87,142.76,0.17]
[1720690396086,20.22418772,142.87,142.76,0.51]
[1720690396289,20.22418772,142.87,142.77,6.5678]
[1720690396973,20.22298304,142.86,142.77,6.5678]
[1720690397175,20.22298304,142.87,142.78,15.0549]
[1720690399486,20.22298304,142.87,142.79,6.2207]
[1720690400088,0.34,142.88,142.79,6.2207]
[1720690400387,20.22175747,142.87,142.79,6.2207]
[1720690400958,0.34,142.86,142.79,6.2207]
[1720690401199,20.22175747,142.85,142.79,6.2207]
[1720690401569,0.17,142.87,142.79,6.2207]
[1720690401887,20.22175747,142.86,142.79,6.2207]
[1720690403495,20.22265827,142.85,142.79,6.2207]
[1720690403682,20.22265827,142.86,142.79,6.2207]
[1720690406968,25.96395093,142.91,142.79,6.2207]
[1720690407172,20.22063082,142.9,142.8,0.17]
[1720690407389,20.22063082,142.9,142.79,6.2207]
[1720690407976,23.15,142.89,142.79,6.2207]
[1720690408176,20.22063082,142.88,142.79,6.2207]
[1720690409197,0.34,142.87,142.79,6.2207]
[1720690409387,20.22063082,142.86,142.79,6.2207]
[1720690410186,23.32,142.87,142.79,6.2207]
[1720690410392,20.56428109,142.86,142.79,6.2207]
[1720690410690,20.39428109,142.85,142.79,6.2207]
[1720690410898,20.22428109,142.84,142.79,6.2207]
[1720690411402,23.15,142.87,142.79,6.2207]
[1720690411403,0.17,142.86,142.79,6.2207]
[1720690411601,20.22341062,142.85,142.79,6.2207]
[1720690412995,0.17,142.84,142.79,6.2207]
[1720690413201,20.22341062,142.83,142.79,6.2207]
[1720690413710,12.64018038,142.82,142.79,6.2207]
[1720690414079,0.17,142.84,142.79,6.2207]
[1720690414303,20.22428667,142.83,142.79,6.2207]
[1720690414689,11.57,142.82,142.79,6.2207]
[1720690417915,11.57,142.81,142.79,6.2207]
[1720690419811,11.57,142.8,142.79,6.2207]
[1720690424413,11.57,142.81,142.79,6.2207]
[1720690426397,11.57,142.82,142.79,6.2207]
[1720690427900,19.34164394,142.86,142.79,6.2207]
[1720690428103,11.57,142.82,142.79,6.2207]
[1720690428316,11.57,142.81,142.79,6.2207]
[1720690429213,11.57,142.8,142.79,6.2207]
[1720690431299,11.57,142.8,142.75,6.2528]
[1720690431511,11.57,142.78,142.75,6.2528]
[1720690432015,11.57,142.79,142.75,6.2528]
[1720690432818,11.57,142.78,142.75,6.2528]
[1720690433414,11.57,142.79,142.75,6.2528]
[1720690433795,0.17,142.84,142.75,17.8228]
[1720690434002,11.57,142.8,142.75,17.8228]
[1720690434219,0.17,142.85,142.76,11.57]
[1720690434418,11.57,142.81,142.76,11.57]
[1720690434994,11.57,142.82,142.77,11.57]
[1720690435420,11.57,142.81,142.76,11.57]
[1720690436405,11.57,142.82,142.77,11.57]
[1720690436721,11.57,142.84,142.79,33.1215]
[1720690437218,11.57,142.83,142.79,21.5515]
[1720690438106,46.28,142.87,142.79,21.5515]
[1720690438313,11.57,142.82,142.79,21.5515]
[1720690439318,11.57,142.81,142.79,21.5515]
[1720690439526,11.57,142.81,142.79,6.2167]
[1720690440234,11.57,142.82,142.79,6.2167]
[1720690441736,11.57,142.81,142.79,6.2167]
[1720690442535,11.57,142.8,142.75,21.4088]
[1720690442713,11.57,142.8,142.75,32.9788]
[1720690443319,11.57,142.8,142.76,11.57]
[1720690443755,11.57,142.8,142.75,32.9788]
[1720690444537,11.57,142.79,142.75,21.4088]
[1720690444839,11.57,142.8,142.75,32.9788]
[1720690445148,11.57,142.81,142.76,11.57]
[1720690446117,11.57,142.8,142.75,32.9788]
[1720690447133,11.57,142.8,142.76,11.57]
[1720690447442,11.57,142.81,142.76,11.57]
[1720690449036,11.57,142.8,142.76,11.57]
[1720690449244,11.57,142.81,142.76,11.57]
[1720690449543,0.17,142.85,142.76,11.57]
[1720690449715,11.57,142.81,142.76,11.57]
[1720690450432,11.57,142.81,142.75,21.4088]
[1720690450616,11.57,142.8,142.75,21.4088]
[1720690450931,11.57,142.8,142.75,32.9788]
[1720690451515,11.57,142.8,142.75,21.4088]
[1720690451834,11.57,142.8,142.75,32.9788]
[1720690452936,11.57,142.78,142.75,21.4088]
[1720690454237,11.57,142.78,142.75,6.4019]
[1720690455135,11.57,142.77,142.75,6.4019]
[1720690455332,11.57,142.77,142.72,27.7564726]
[1720690455512,11.57,142.77,142.72,34.2576726]
[1720690457351,11.57,142.79,142.74,11.57]
[1720690459742,11.57,142.78,142.73,11.57]
[1720690460749,0.17,142.84,142.74,11.57]
[1720690461047,11.57,142.8,142.76,11.57]
[1720690461219,11.57,142.81,142.73,0.17]
[1720690461423,11.57,142.81,142.76,11.57]
[1720690461622,37.80561937,142.86,142.78,6.0059]
[1720690461827,11.57,142.82,142.78,6.0059]
[1720690462052,11.57,142.83,142.78,17.5759]
[1720690462621,11.57,142.81,142.78,6.0059]
[1720690462929,11.57,142.8,142.78,6.0059]
[1720690463130,11.57,142.8,142.75,11.57]
[1720690463452,11.57,142.79,142.74,17.9808]
[1720690466145,11.57,142.8,142.76,11.57]
[1720690466460,11.57,142.79,142.74,17.9808]
[1720690466621,11.57,142.8,142.75,11.57]
[1720690466823,11.57,142.82,142.74,6.4108]
[1720690467016,20.22567937,142.81,142.77,11.57]
[1720690467250,20.22567937,142.81,142.74,6.4108]
[1720690467251,11.57,142.81,142.76,11.57]
[1720690468734,16.1069,142.79,142.72,0.5383726]
[1720690469051,11.57,142.74,142.72,0.5383726]
[1720690470751,11.57,142.75,142.72,0.5383726]
[1720690472455,11.57,142.76,142.72,12.1083726]
[1720690472745,11.57,142.76,142.72,0.5383726]
[1720690475956,11.57,142.76,142.72,12.1083726]
[1720690476352,23.80575218,142.82,142.72,12.1083726]
[1720690476558,11.57,142.77,142.72,12.1083726]
[1720690476851,0.17,142.81,142.73,17.6803]
[1720690477153,11.57,142.78,142.73,17.6803]
[1720690477928,15.5751,142.82,142.73,17.6803]
[1720690477929,11.57,142.77,142.73,17.6803]
[1720690478137,11.57,142.77,142.73,6.1103]
[1720690479959,11.57,142.76,142.73,6.1103]
[1720690482663,11.57,142.78,142.73,17.6803]
[1720690482851,11.57,142.79,142.74,11.57]
[1720690483050,11.57,142.78,142.73,17.6803]
[1720690484659,11.57,142.77,142.73,6.1103]
[1720690486756,11.57,142.76,142.73,6.1103]
[1720690487669,46.28,142.8,142.73,6.1103]
[1720690487969,15.5751,142.82,142.73,6.1103]
[1720690487970,40.4596754,142.79,142.73,17.6803]
[1720690488169,11.57,142.78,142.73,17.6803]
[1720690488473,20.2298377,142.79,142.73,17.6803]
[1720690488769,11.57,142.78,142.73,17.6803]
[1720690488943,20.3998377,142.79,142.72,0.5383726]
[1720690489144,11.57,142.76,142.72,0.5383726]
[1720690491676,11.57,142.75,142.72,0.5383726]
[1720690493472,20.3998377,142.79,142.72,0.5383726]
[1720690493660,11.57,142.75,142.72,0.5383726]
[1720690495764,11.57,142.76,142.72,0.5383726]
[1720690497074,11.57,142.75,142.72,0.5383726]
[1720690500364,20.2298377,142.79,142.73,18.1739]
[1720690500563,11.57,142.78,142.73,18.1739]
[1720690501296,20.2298377,142.79,142.73,18.1739]
[1720690501481,11.57,142.78,142.73,18.1739]
[1720690502880,31.7998377,142.79,142.74,11.57]
[1720690503086,11.57,142.79,142.74,11.57]
[1720690503466,11.57,142.78,142.73,18.1739]
[1720690503988,15.5751,142.82,142.73,18.1739]
[1720690504189,11.57,142.78,142.73,18.1739]
[1720690504578,15.5751,142.82,142.73,18.1739]
[1720690504778,11.57,142.78,142.73,18.1739]
[1720690507163,11.57,142.78,142.74,11.57]
[1720690507364,0.17,142.83,142.76,11.57]
[1720690507575,11.57,142.81,142.76,11.57]
[1720690509797,71.03298731,142.87,142.73,18.1739]
[1720690509798,16.4629,142.87,142.8,17.7158]
[1720690509998,11.57,142.85,142.8,17.7158]
[1720690510291,20.22296855,142.84,142.81,11.57]
[1720690510502,11.57,142.86,142.82,11.57]
[1720690510674,11.57,142.86,142.8,6.1458]
[1720690510675,11.57,142.88,142.81,0.34]
[1720690510873,20.21941343,142.87,142.84,11.57]
[1720690511067,20.21941343,142.88,142.84,11.57]
[1720690511772,20.21941343,142.88,142.81,0.34]
[1720690511983,15.0746,142.91,142.85,11.57]
[1720690512177,31.78840034,142.9,142.86,11.57]
[1720690512377,20.21840034,142.89,142.86,11.57]
[1720690512583,20.21840034,142.89,142.85,11.57]
[1720690513995,11.57,142.88,142.81,0.17]
[1720690514209,11.57,142.87,142.81,0.34]
[1720690514378,11.57,142.87,142.82,11.57]
[1720690514578,11.57,142.88,142.83,11.57]
[1720690515903,11.57,142.88,142.81,0.17]
[1720690516109,11.57,142.86,142.81,11.74]
[1720690516479,11.57,142.86,142.82,11.57]
[1720690516782,11.57,142.86,142.8,6.1458]
[1720690516783,11.57,142.85,142.8,6.1458]
[1720690516987,11.57,142.84,142.8,6.1458]
[1720690517388,11.57,142.81,142.74,22.2095]
[1720690517709,11.57,142.81,142.76,11.57]
[1720690517909,11.57,142.82,142.77,11.57]
[1720690518588,11.57,142.81,142.76,11.57]
[1720690518995,11.57,142.8,142.75,11.57]
[1720690520400,11.57,142.81,142.76,11.57]
[1720690521317,11.57,142.8,142.76,11.57]
[1720690521505,15.6967,142.86,142.76,11.57]
[1720690521708,11.57,142.8,142.76,11.57]
[1720690522809,11.57,142.8,142.74,22.2095]
[1720690523006,11.57,142.79,142.74,33.7795]
[1720690524499,11.57,142.78,142.74,22.2095]
[1720690525219,11.57,142.78,142.74,33.7795]
[1720690525814,11.57,142.79,142.74,33.7795]
[1720690526116,11.57,142.79,142.75,11.57]
[1720690526320,11.57,142.79,142.74,33.7795]
[1720690526689,11.57,142.79,142.75,11.57]
[1720690527715,18.27211086,142.86,142.76,0.17]
[1720690528017,15.5267,142.86,142.79,11.57]
[1720690528201,15.9463,142.9,142.81,11.57]
[1720690528406,11.57,142.86,142.81,11.57]
[1720690529111,11.57,142.85,142.8,33.4142]
[1720690529707,11.57,142.84,142.8,21.8442]
[1720690529919,11.57,142.83,142.8,6.4331]
[1720690530214,11.57,142.81,142.76,33.9392]
[1720690530722,11.57,142.8,142.76,22.3692]
[1720690530911,11.57,142.81,142.76,33.9392]
[1720690531415,0.17,142.86,142.76,33.9392]
[1720690531611,11.57,142.81,142.76,33.9392]
[1720690532703,23.48,142.86,142.76,22.3692]
[1720690532923,20.22570494,142.85,142.76,22.3692]
[1720690537530,23.14,142.86,142.77,0.51]
[1720690537714,20.22437497,142.85,142.77,0.51]
[1720690538020,20.22437497,142.85,142.76,22.3692]
[1720690540026,43.36437497,142.85,142.76,22.3692]
[1720690540203,20.22437497,142.84,142.76,22.3692]
[1720690540901,23.14,142.85,142.76,22.3692]
[1720690541097,20.3961543,142.84,142.76,22.3692]
[1720690541398,43.5361543,142.83,142.76,22.3692]
[1720690541601,20.2261543,142.82,142.76,22.3692]
[1720690541917,23.31,142.83,142.76,22.3692]
[1720690542109,20.22826166,142.82,142.76,22.3692]
[1720690542309,23.31,142.83,142.76,22.3692]
[1720690542509,20.22761156,142.82,142.76,22.3692]
[1720690543928,6.96224023,142.82,142.76,22.3692]
[1720690544323,23.31,142.83,142.76,22.3692]
[1720690544831,23.31,142.83,142.76,6.0552]
[1720690545417,23.31,142.83,142.72,21.6935726]
[1720690545619,0.17,142.82,142.72,21.6935726]
[1720690548841,23.48,142.83,142.73,0.17]
[1720690550326,23.48,142.83,142.73,0.34]
[1720690550641,23.14,142.83,142.75,6.0136]
[1720690550844,0.17,142.85,142.76,15.3697]
[1720690551009,0.34,142.85,142.76,15.3697]
[1720690551951,0.34,142.85,142.77,1.40059761]
[1720690552146,0.34,142.85,142.76,15.3697]
[1720690552521,1.90521874,142.85,142.76,15.3697]
[1720690552743,23.14,142.84,142.76,15.3697]
[1720690552921,0.17,142.83,142.76,15.3697]
[1720690553124,0.51,142.83,142.76,15.3697]
[1720690554036,23.14,142.84,142.76,15.3697]
[1720690554229,20.22717813,142.83,142.76,15.3697]
[1720690554422,23.14,142.84,142.76,15.3697]
[1720690554631,20.22804307,142.83,142.76,15.3697]
[1720690555422,0.17,142.82,142.76,15.3697]
[1720690555747,0.34,142.82,142.76,15.3697]
[1720690556124,0.17,142.83,142.76,15.3697]
[1720690556349,0.17,142.82,142.76,15.3697]
[1720690556546,0.17,142.83,142.76,15.3697]
[1720690556720,0.17,142.82,142.76,15.3697]
[1720690556922,0.17,142.83,142.76,15.3697]
[1720690557130,23.14,142.84,142.76,15.3697]
[1720690557421,1.56521874,142.88,142.77,6.2249]
[1720690557619,20.22394121,142.87,142.77,6.3949]
[1720690557845,20.22361965,142.86,142.77,6.3949]
[1720690558148,24.70521874,142.88,142.77,6.3949]
[1720690558448,23.14,142.86,142.77,6.2249]
[1720690558654,23.14,142.84,142.77,6.2249]
[1720690559547,20.22631641,142.83,142.77,6.2249]
[1720690560826,23.14,142.84,142.77,6.2249]
[1720690561049,20.22685833,142.83,142.77,6.2249]
[1720690561226,23.14,142.84,142.77,6.2249]
[1720690561427,20.22642513,142.83,142.77,6.2249]
[1720690563736,0.17,142.82,142.77,6.2249]
[1720690564046,20.22642513,142.81,142.77,6.2249]
[1720690566071,0.17,142.82,142.77,6.2249]
[1720690566362,20.22642513,142.81,142.77,6.2249]
[1720690566567,23.31,142.84,142.77,6.2249]
[1720690566867,23.14,142.84,142.77,6.2249]
[1720690567035,20.22730804,142.83,142.77,6.2249]
[1720690567736,0.34,142.85,142.77,6.2249]
[1720690570142,20.22771761,142.84,142.77,6.2249]
[1720690573880,20.22771761,142.84,142.76,15.3697]
[1720690573881,20.22771761,142.84,142.8,0.17]
[1720690574164,16.1633,142.94,142.82,6.4203]
[1720690574372,16.1633,142.94,142.83,0.17]
[1720690574551,16.1633,142.94,142.83,0.34]
[1720690576954,0.17,142.94,142.84,0.34]
[1720690577151,0.34,142.94,142.84,0.34]
[1720690577844,8.47688088,142.96,142.86,0.17]
[1720690578154,39.4939,142.98,142.86,0.51]
[1720690578767,41.05911874,142.98,142.86,0.51]
[1720690579061,0.34,142.97,142.86,0.51]
[1720690579367,41.05911874,142.98,142.86,0.51]
[1720690580054,1.73521874,142.97,142.86,0.51]
[1720690580457,0.17,142.96,142.86,0.51]
[1720690580648,0.34,142.96,142.86,0.51]
[1720690581250,23.48,142.96,142.85,21.5311]
[1720690581449,0.17,142.95,142.85,21.5311]
[1720690582064,23.48,142.96,142.85,21.5311]
[1720690583476,23.14,142.94,142.85,21.5311]
[1720690583647,0.34,142.93,142.85,21.5311]
[1720690585174,23.14,142.92,142.85,21.5311]
[1720690585378,0.51,142.91,142.85,21.5311]
[1720690588682,0.51,142.91,142.85,6.1487]
[1720690588683,0.17,142.89,142.85,6.1487]
[1720690588857,0.34,142.89,142.85,6.1487]
[1720690592956,23.14,142.9,142.85,6.1487]
[1720690593153,0.17,142.91,142.85,6.1487]
[1720690593358,0.51,142.91,142.85,6.1487]
[1720690594155,23.65,142.91,142.85,6.1487]
[1720690595567,23.48,142.91,142.85,6.1487]
[1720690597074,0.17,142.9,142.85,6.1487]
[1720690597276,0.34,142.9,142.85,6.1487]
[1720690599877,0.17,142.89,142.85,6.1487]
[1720690600079,0.34,142.89,142.85,6.1487]
[1720690601389,23.48,142.89,142.85,6.1487]
[1720690601588,6.4734,142.89,142.85,6.1487]
[1720690601791,100.0,143.02,142.87,6.2023]
[1720690601967,36.53320299,142.99,142.87,6.2023]
[1720690602165,23.14,143.01,142.87,6.2023]
[1720690602166,23.14,142.95,142.87,6.2023]
[1720690604491,0.17,142.94,142.87,6.2023]
[1720690604788,0.34,142.94,142.87,6.2023]
[1720690612772,23.14,142.93,142.87,6.2023]
[1720690613094,0.34,142.92,142.87,6.2023]
[1720690614500,0.17,142.9,142.83,6.1448]
[1720690614802,23.14,142.89,142.83,6.1448]
[1720690617995,0.17,142.88,142.83,6.1448]
[1720690619808,0.51,142.88,142.83,6.1448]
[1720690620102,0.17,142.86,142.8,6.3624]
[1720690620408,0.34,142.86,142.8,6.3624]
[1720690620705,0.51,142.86,142.8,6.3624]
[1720690621905,23.14,142.85,142.8,6.3624]
[1720690622209,23.31,142.83,142.78,3.553]
[1720690622408,0.17,142.82,142.78,3.553]
[1720690623508,0.34,142.82,142.77,6.148]
[1720690623805,0.17,142.81,142.77,6.148]
[1720690626017,0.34,142.82,142.77,6.148]
[1720690631988,0.17,142.81,142.77,6.148]
[1720690632319,23.31,142.81,142.74,3.553]
[1720690632492,0.34,142.8,142.74,3.553]
[1720690632832,0.34,142.8,142.73,6.5113]
[1720690633123,0.17,142.79,142.73,6.5113]
[1720690633291,23.14,142.78,142.73,6.5113]
[1720690633495,0.17,142.77,142.73,6.5113]
[1720690634015,23.31,142.8,142.73,6.5113]
[1720690635013,23.14,142.8,142.73,6.5113]
[1720690636603,0.34,142.81,142.73,6.5113]
[1720690639730,25.92549242,142.84,142.75,3.553]
[1720690640020,23.14,142.82,142.75,3.553]
[1720690640801,0.17,142.81,142.75,3.553]
[1720690641016,0.34,142.81,142.75,3.553]
[1720690643223,0.34,142.81,142.73,6.5113]
[1720690643224,23.14,142.8,142.73,6.5113]
[1720690643626,0.34,142.79,142.73,6.5113]
[1720690644301,23.14,142.8,142.73,6.5113]
[1720690645434,0.51,142.79,142.73,6.5113]
[1720690648503,23.14,142.78,142.73,6.5113]
[1720690648804,0.34,142.77,142.73,6.5113]
[1720690650521,11.58,142.74,142.73,6.5113]
[1720690650710,11.58,142.74,142.72,0.5383726]
[1720690650914,11.58,142.73,142.72,0.5383726]
[1720690651526,11.58,142.74,142.72,0.5383726]
[1720690652228,2.92761365,142.79,142.72,0.5383726]
[1720690652421,11.58,142.77,142.72,12.1183726]
[1720690652729,15.1572,142.85,142.73,6.2857]
[1720690652916,15.1572,142.85,142.74,11.58]
[1720690653230,11.58,142.79,142.74,11.58]
[1720690654632,23.15,142.83,142.73,6.2857]
[1720690655017,0.17,142.82,142.73,6.2857]
[1720690655437,0.34,142.82,142.73,6.2857]
[1720690656012,0.17,142.82,142.73,6.2857]
[1720690656414,0.34,142.82,142.73,6.2857]
[1720690656622,0.17,142.8,142.73,6.2857]
[1720690657733,23.15,142.81,142.73,6.2857]
[1720690658431,0.17,142.8,142.73,6.2857]
[1720690658813,0.34,142.82,142.73,6.2857]
[1720690663331,0.17,142.81,142.73,6.2857]
[1720690663527,0.17,142.8,142.73,6.2857]
[1720690664629,0.34,142.8,142.73,6.2857]
[1720690665248,0.17,142.8,142.73,6.2857]
[1720690667218,23.15,142.81,142.73,6.2857]
[1720690669034,0.17,142.82,142.73,6.2857]
[1720690669243,0.34,142.82,142.73,6.2857]
[1720690672042,23.15,142.83,142.74,3.553]
[1720690672540,23.15,142.83,142.75,6.3303]
[1720690672747,0.34,142.84,142.75,6.3303]
[1720690675347,13.40618406,142.83,142.75,6.3303]
[1720690676621,11.57,142.8,142.75,17.9003]
[1720690676925,0.17,142.84,142.75,17.9003]
[1720690676926,11.57,142.79,142.75,17.9003]
[1720690677140,11.57,142.79,142.75,6.3303]
[1720690678435,11.57,142.78,142.75,6.3303]
[1720690679219,11.57,142.79,142.75,6.3303]
[1720690679422,11.57,142.8,142.75,17.9003]
[1720690679835,11.57,142.81,142.76,11.57]
[1720690680039,0.17,142.84,142.76,11.57]
[1720690680248,11.57,142.81,142.76,11.57]
[1720690680438,46.28,142.87,142.76,6.7391]
[1720690680638,106.4369,142.93,142.76,6.7391]
[1720690680639,11.57,142.85,142.8,18.1391]
[1720690680842,17.14891874,142.92,142.81,11.57]
[1720690680843,11.57,142.86,142.81,11.57]
[1720690681317,17.14891874,142.92,142.82,11.57]
[1720690681545,11.57,142.87,142.82,11.57]
[1720690683446,11.57,142.88,142.84,6.6471]
[1720690684024,17.14891874,142.92,142.84,6.6471]
[1720690684025,1.56521874,142.92,142.84,10.2001]
[1720690684237,11.57,142.89,142.85,11.57]
[1720690684650,1.56521874,142.92,142.84,10.2001]
[1720690684836,7.33295311,142.96,142.87,11.57]
[1720690685024,11.57,142.92,142.87,11.57]
[1720690685237,11.57,142.91,142.86,11.57]
[1720690685443,8.89817185,142.96,142.86,11.57]
[1720690685444,11.57,142.9,142.86,11.57]
[1720690685835,1.56521874,142.96,142.87,11.57]
[1720690686050,11.57,142.92,142.88,11.57]
[1720690686251,11.57,142.93,142.88,11.57]
[1720690688050,11.57,142.92,142.87,11.57]
[1720690689067,15.6334,142.98,142.88,15.463]
[1720690689361,11.57,142.94,142.89,11.57]
[1720690689541,11.57,142.93,142.88,15.463]
[1720690689944,11.57,142.93,142.88,15.123]
[1720690690149,11.57,142.92,142.88,3.553]
[1720690690954,11.57,142.91,142.88,3.553]
[1720690691151,11.57,142.94,142.88,3.553]
[1720690691152,11.57,142.9,142.88,3.553]
[1720690691352,11.57,142.94,142.88,3.553]
[1720690691555,11.57,142.91,142.88,3.553]
[1720690691749,11.57,142.92,142.88,3.553]
[1720690691958,11.57,142.93,142.88,15.123]
[1720690692665,11.57,142.94,142.89,11.57]
[1720690693549,15.6334,142.98,142.9,11.57]
[1720690693759,11.57,142.95,142.9,11.57]
[1720690693985,11.57,142.95,142.88,3.553]
[1720690693986,11.57,142.94,142.89,11.57]
[1720690694747,11.57,142.93,142.88,3.553]
[1720690694974,11.57,142.92,142.88,3.553]
[1720690695465,11.57,142.91,142.88,3.553]
[1720690695854,11.57,142.92,142.88,3.553]
[1720690696169,11.57,142.92,142.88,15.123]
[1720690696548,11.57,142.92,142.88,3.553]
[1720690696745,11.57,142.91,142.88,3.553]
[1720690697665,11.57,142.91,142.86,6.5963]
[1720690697870,11.57,142.91,142.86,18.1663]
[1720690698875,11.57,142.91,142.87,11.57]
[1720690699263,11.57,142.92,142.88,11.57]
[1720690699479,11.57,142.93,142.88,11.57]
[1720690700253,11.57,142.92,142.87,11.57]
[1720690701255,11.57,142.91,142.87,11.57]
[1720690701978,11.57,142.91,142.86,18.1663]
[1720690702775,11.57,142.91,142.86,6.5963]
[1720690702967,11.57,142.91,142.86,18.1663]
[1720690703369,11.57,142.9,142.86,18.1663]
[1720690704785,11.57,142.9,142.86,6.5963]
[1720690705285,11.57,142.88,142.86,6.5963]
[1720690705771,11.57,142.87,142.82,6.1036]
[1720690705969,11.57,142.85,142.82,6.1036]
[1720690707060,11.57,142.84,142.82,6.1036]